bitfinex/quotes_BTCUSD_20251217
["timestamp","ask_amount","ask_price","bid_price","bid_amount"]
[1765985107660,0.0111252,89886.0,89881.0,0.01112582]
[1765985107862,0.23362992,89886.0,89878.0,0.01112619]
[1765985107995,0.23363725,89883.0,89877.0,0.01112631]
[1765985108202,0.01112483,89889.0,89880.0,0.07324]
[1765985108565,0.02640858,89888.0,89880.0,0.08436594]
[1765985108844,0.22250416,89886.0,89880.0,0.01273881]
[1765985109056,0.0111252,89886.0,89882.0,0.08436569]
[1765985109266,0.01112532,89885.0,89882.0,0.07324]
[1765985109516,0.22251495,89882.0,89880.0,0.00161287]
[1765985109723,0.02640858,89881.0,89869.0,0.0111273]
[1765985109941,0.02916458,89891.0,89886.0,0.0111252]
[1765985110143,0.2336203,89890.0,89886.0,0.23362798]
[1765985110368,0.01112384,89897.0,89890.0,0.0111247]
[1765985110574,0.2907,89899.0,89891.0,0.22249052]
[1765985110781,0.01112371,89898.0,89892.0,0.2224892]
[1765985110989,0.01112359,89899.0,89892.0,0.07324]
[1765985111204,0.01112359,89899.0,89860.0,2.1339651]
[1765985111205,1.02112388,89902.0,89881.0,0.01112582]
[1765985111414,1.02112388,89902.0,89880.0,0.23364485]
[1765985111415,0.23365091,89878.0,89874.0,0.01112668]
[1765985111622,0.01112606,89879.0,89874.0,0.01112668]
[1765985111623,0.23364958,89879.0,89874.0,0.01112668]
[1765985111827,0.01112606,89879.0,89875.0,0.22252939]
[1765985111998,0.23364685,89880.0,89876.0,0.22252813]
[1765985112203,0.23365044,89878.0,89874.0,0.01112668]
[1765985112405,0.23364172,89882.0,89877.0,0.01112631]
[1765985112611,0.23364571,89880.0,89877.0,0.01112631]
[1765985112811,0.01112631,89877.0,89874.0,0.00161287]
[1765985113016,0.01112619,89878.0,89874.0,0.00161287]
[1765985113217,0.01112582,89881.0,89876.0,0.22252835]
[1765985113422,0.01112347,89900.0,89891.0,0.01112458]
[1765985113598,0.01112359,89899.0,89891.0,0.01273745]
[1765985113800,0.01112334,89901.0,89893.0,0.01112433]
[1765985113998,0.23359288,89900.0,89895.0,0.06833]
[1765985114198,0.01112396,89896.0,89893.0,0.00161287]
[1765985114409,0.23361933,89890.0,89886.0,0.22250277]
[1765985114608,1.02112388,89920.0,89884.0,0.0044305]
[1765985114609,0.0111252,89886.0,89884.0,0.0044305]
[1765985114810,0.2225071,89885.0,89881.0,0.22251503]
[1765985115035,0.2225071,89885.0,89880.0,0.01112594]
[1765985115036,0.01112545,89884.0,89880.0,0.01112594]
[1765985115238,0.01112582,89881.0,89878.0,0.00161287]
[1765985115437,0.22251934,89880.0,89878.0,0.00161287]
[1765985115823,0.22251934,89880.0,89872.0,0.01112693]
[1765985115824,0.03753464,89879.0,89872.0,0.22253763]
[1765985116184,0.01112483,89889.0,89881.0,0.01112582]
[1765985116315,0.0111247,89890.0,89884.0,0.01112545]
[1765985116515,0.01112532,89885.0,89880.0,0.001]
[1765985116729,0.02536678,89896.0,89890.0,0.0111247]
[1765985116920,0.01112384,89897.0,89890.0,0.0111247]
[1765985117180,0.01112483,89889.0,89884.0,0.22250679]
[1765985117374,0.04444858,89888.0,89869.0,0.0111273]
[1765985117576,0.01334067,89898.0,89859.0,0.06833]
[1765985117577,0.01112705,89871.0,89866.0,0.23368063]
[1765985117779,0.22254012,89872.0,89867.0,0.01112755]
[1765985117988,0.02640858,89879.0,89867.0,0.01112755]
[1765985117989,0.40562016,89909.0,89871.0,0.00161287]
[1765985118196,1.02112388,89890.0,89885.0,0.01112532]
[1765985118398,0.01112606,89879.0,89872.0,0.01112693]
[1765985118597,0.01112606,89879.0,89875.0,0.01112656]
[1765985118863,0.01112582,89881.0,89877.0,0.01112631]
[1765985119142,0.01112582,89881.0,89876.0,0.01112644]
[1765985119341,0.23364773,89879.0,89876.0,0.01112644]
[1765985119666,0.01112594,89880.0,89876.0,0.01112644]
[1765985119858,0.23363294,89885.0,89881.0,0.01112582]
[1765985120096,0.02640858,89884.0,89880.0,0.23364415]
[1765985120244,0.01112433,89893.0,89885.0,0.01112532]
[1765985120566,0.02916446,89892.0,89888.0,0.01112495]
[1765985120804,0.01112421,89894.0,89891.0,0.01112458]
[1765985121011,0.01112606,89879.0,89874.0,0.01112668]
[1765985121163,0.01112606,89879.0,89872.0,0.01112693]
[1765985121513,1.02112388,89890.0,89868.0,0.01112743]
[1765985121514,0.01112681,89873.0,89868.0,0.01112743]
[1765985121718,0.01112693,89872.0,89867.0,0.01112755]
[1765985121887,0.01112644,89876.0,89872.0,0.23366538]
[1765985122089,0.01112606,89879.0,89871.0,0.01112705]
[1765985122311,0.01112644,89876.0,89871.0,0.00161287]
[1765985122472,0.01112631,89877.0,89871.0,0.01273992]
[1765985122827,0.01112619,89878.0,89871.0,0.00161287]
[1765985122828,0.23366328,89874.0,89871.0,0.00161287]
[1765985122985,0.22253768,89873.0,89871.0,0.00161287]
[1765985123389,0.01112619,89878.0,89871.0,0.00161287]
[1765985123593,0.24054939,89884.0,89871.0,0.00161287]
[1765985123594,0.01112545,89884.0,89881.0,0.01112582]
[1765985123822,0.01804,89889.0,89883.0,0.01112557]
[1765985124151,0.01112606,89879.0,89874.0,0.01112668]
[1765985124366,0.01112631,89877.0,89871.0,0.01273992]
[1765985124569,0.01112854,89859.0,89852.0,0.01112941]
[1765985124778,0.0111299,89848.0,89845.0,0.02226055]
[1765985125004,0.01113003,89847.0,89839.0,0.01113102]
[1765985125209,0.01112978,89849.0,89843.0,0.22260939]
[1765985125410,0.01113003,89847.0,89843.0,0.23373991]
[1765985125627,0.01112966,89850.0,89846.0,0.01113015]
[1765985125929,0.01113015,89846.0,89843.0,0.00161287]
[1765985126113,0.23372585,89849.0,89846.0,0.01113015]
[1765985126373,0.23372585,89849.0,89844.0,0.22260807]
[1765985126374,0.01112928,89853.0,89844.0,0.0111304]
[1765985126586,0.23373365,89846.0,89843.0,0.00161287]
[1765985126798,0.01113015,89846.0,89843.0,0.00161287]
[1765985127024,0.01113015,89846.0,89843.0,0.23535379]
[1765985127268,0.01113015,89846.0,89843.0,0.00161287]
[1765985127488,0.0111299,89848.0,89843.0,0.01274339]
[1765985127693,0.23373357,89846.0,89843.0,0.00161287]
[1765985127905,0.22260612,89845.0,89843.0,0.00161287]
[1765985128127,0.01113127,89837.0,89831.0,0.22263841]
[1765985128347,0.01113151,89835.0,89831.0,0.01113201]
[1765985128597,0.01113151,89835.0,89832.0,0.01113189]
[1765985128831,0.01113114,89838.0,89830.0,0.01113213]
[1765985129038,0.01113114,89838.0,89834.0,0.23376342]
[1765985129261,0.01113151,89835.0,89831.0,0.23377205]
[1765985129479,0.22263533,89833.0,89827.0,0.01113251]
[1765985129714,0.01113189,89832.0,89827.0,0.01113251]
[1765985129942,0.23377064,89832.0,89827.0,0.23378268]
[1765985130149,0.2226315,89835.0,89830.0,0.01113213]
[1765985130356,0.22264539,89829.0,89824.0,0.22265742]
[1765985130570,0.01113201,89831.0,89827.0,0.01113251]
[1765985130768,0.23376999,89832.0,89828.0,0.2226467]
[1765985130971,0.01213189,89832.0,89829.0,0.01113226]
[1765985131172,0.001,89832.0,89829.0,0.23377706]
[1765985131389,0.001,89832.0,89822.0,0.22266212]
[1765985131390,0.01113275,89825.0,89820.0,0.01113337]
[1765985131599,0.01113288,89824.0,89821.0,0.23379795]
[1765985131825,0.00161,89825.0,89823.0,0.22265819]
[1765985132259,0.01113374,89817.0,89810.0,0.0002]
[1765985132474,0.2226887,89812.0,89810.0,0.0002]
[1765985132684,0.23381742,89814.0,89810.0,0.01133461]
[1765985132893,0.22268787,89812.0,89810.0,0.0002]
[1765985133112,0.01113424,89813.0,89810.0,0.0002]
[1765985133319,0.00161,89812.0,89810.0,0.0002]
[1765985133532,0.02433601,89812.0,89810.0,0.0002]
[1765985133751,0.01804,89811.0,89810.0,0.22289159]
[1765985134134,0.01965,89811.0,89780.0,0.35926]
[1765985134342,0.01113622,89797.0,89790.0,0.01153709]
[1765985134699,1.02112388,89800.0,89790.0,0.01153709]
[1765985134700,1.02112388,89800.0,89797.0,0.23385938]
[1765985134909,0.22269978,89807.0,89804.0,0.06856]
[1765985135115,0.22272518,89797.0,89792.0,0.01113684]
[1765985135329,0.01113635,89796.0,89791.0,0.01113697]
[1765985135536,0.00161,89800.0,89795.0,0.23386602]
[1765985135537,0.01274585,89800.0,89795.0,0.23386602]
[1765985135750,0.23386185,89797.0,89793.0,0.01113672]
[1765985135952,0.01274585,89800.0,89790.0,0.23427884]
[1765985135953,0.01113635,89796.0,89790.0,0.0004]
[1765985136131,0.01113697,89791.0,89785.0,0.01113771]
[1765985136284,0.01113709,89790.0,89785.0,0.23389081]
[1765985136488,0.01113771,89785.0,89779.0,0.01113846]
[1765985136687,0.01113796,89783.0,89779.0,0.01113846]
[1765985136941,0.23389365,89785.0,89779.0,0.01113846]
[1765985136942,0.23389365,89785.0,89780.0,0.01113833]
[1765985137146,0.23387719,89791.0,89784.0,0.01113784]
[1765985137314,0.01113697,89791.0,89784.0,0.00141413]
[1765985137499,0.01113672,89793.0,89781.0,0.01113821]
[1765985137500,0.01113771,89785.0,89781.0,0.01113821]
[1765985137751,0.02640858,89785.0,89781.0,0.01113821]
[1765985137904,0.01804,89784.0,89781.0,0.01113821]
[1765985138117,0.01804,89784.0,89771.0,0.01113945]
[1765985138118,0.22277785,89776.0,89771.0,0.01113945]
[1765985138308,0.22277785,89776.0,89760.0,0.0002]
[1765985138309,0.22278165,89774.0,89769.0,0.0111397]
[1765985138596,0.22278165,89774.0,89770.0,0.01113957]
[1765985138771,0.22278165,89774.0,89767.0,0.01113995]
[1765985138972,0.01113821,89781.0,89770.0,0.01113957]
[1765985139169,0.01113821,89781.0,89760.0,0.0002]
[1765985139170,0.00161,89800.0,89799.0,0.22271962]
[1765985139389,0.0111361,89798.0,89791.0,0.01113697]
[1765985139671,0.22273436,89794.0,89782.0,0.01113809]
[1765985139919,0.0111361,89798.0,89785.0,0.01113771]
[1765985140121,0.01274585,89800.0,89772.0,0.0866]
[1765985140122,0.00161,89800.0,89773.0,0.2907]
[1765985140411,0.00161,89800.0,89795.0,0.01113647]
[1765985140749,0.00161,89800.0,89794.0,0.0111366]
[1765985141198,0.01113598,89799.0,89792.0,0.23387383]
[1765985141398,0.00261,89800.0,89797.0,0.01113622]
[1765985141598,0.01113635,89796.0,89790.0,0.22274195]
[1765985141757,0.01113622,89797.0,89791.0,0.01113697]
[1765985141972,0.22270296,89806.0,89800.0,0.22271536]
[1765985142178,0.01113523,89805.0,89795.0,0.01113647]
[1765985142376,0.01113523,89805.0,89795.0,0.22272879]
[1765985142377,0.22270722,89804.0,89795.0,0.22272879]
[1765985142721,0.01113635,89796.0,89790.0,0.01237061]
[1765985142875,0.01113684,89792.0,89789.0,0.01804]
[1765985143076,0.0111356,89802.0,89789.0,0.01804]
[1765985143279,0.01113684,89792.0,89789.0,0.01804]
[1765985143477,0.0111366,89794.0,89789.0,0.02917722]
[1765985143699,0.01113684,89792.0,89789.0,0.01804]
[1765985143902,0.23387449,89792.0,89789.0,0.01804]
[1765985144102,0.01113573,89801.0,89793.0,0.01113672]
[1765985144304,0.01113647,89795.0,89789.0,0.01804]
[1765985144506,0.23387062,89794.0,89789.0,0.02917722]
[1765985144703,0.2227375,89792.0,89789.0,0.01804]
[1765985144911,0.2227375,89792.0,89786.0,0.01113759]
[1765985144912,0.22275435,89785.0,89761.0,0.05001839]
[1765985145111,0.2338959,89784.0,89778.0,0.22277117]
[1765985145453,0.01113809,89782.0,89776.0,0.23391394]
[1765985145728,0.01113722,89789.0,89781.0,0.01113821]
[1765985145928,0.01113734,89788.0,89781.0,0.01113821]
[1765985146130,0.23388238,89789.0,89782.0,0.01113809]
[1765985146278,0.01113697,89791.0,89786.0,0.01113759]
[1765985146474,0.0111356,89802.0,89797.0,0.01113622]
[1765985146693,0.01113573,89801.0,89792.0,0.01113684]
[1765985146899,0.01432,89808.0,89801.0,0.01113573]
[1765985147096,0.01432,89808.0,89803.0,0.01113548]
[1765985147318,0.01432,89808.0,89793.0,0.01804]
[1765985147319,0.01113598,89799.0,89795.0,0.01113647]
[1765985147628,0.22272027,89799.0,89793.0,0.02917672]
[1765985147832,0.0111361,89798.0,89792.0,0.01113684]
[1765985147999,0.01113635,89796.0,89792.0,0.01113684]
[1765985148193,0.01113635,89796.0,89791.0,0.01113697]
[1765985148194,0.01113647,89795.0,89791.0,0.01113697]
[1765985148396,0.22273775,89792.0,89790.0,0.01804]
[1765985148620,0.01113635,89796.0,89793.0,0.01113672]
[1765985148820,0.23385341,89800.0,89795.0,0.01113647]
[1765985149171,0.23386149,89797.0,89789.0,0.01113722]
[1765985149306,0.23386894,89794.0,89790.0,0.23387904]
[1765985149500,0.01113672,89793.0,89787.0,0.01113746]
[1765985149722,0.01113709,89790.0,89786.0,0.01113759]
[1765985149922,0.01113709,89790.0,89786.0,0.22275117]
[1765985150125,0.01274709,89790.0,89783.0,0.02917796]
[1765985150326,0.00161,89790.0,89786.0,0.01113759]
[1765985150682,0.0111356,89802.0,89794.0,0.0111366]
[1765985150865,0.01113622,89797.0,89792.0,0.01113684]
[1765985151017,0.01113573,89801.0,89795.0,0.01113647]
[1765985151234,0.00161,89802.0,89799.0,0.01113598]
[1765985151432,0.01113498,89807.0,89801.0,0.22271415]
[1765985151636,0.01113548,89803.0,89799.0,0.01113598]
[1765985151835,0.23384282,89804.0,89800.0,0.23385271]
[1765985152022,0.23384282,89804.0,89799.0,0.01113598]
[1765985152227,0.01113548,89803.0,89799.0,0.2338537]
[1765985152457,0.01113585,89800.0,89796.0,0.23386245]
[1765985152645,0.23389016,89786.0,89781.0,0.01113821]
[1765985152852,0.01113759,89786.0,89782.0,0.01113809]
[1765985153052,0.01113796,89783.0,89778.0,0.25194805]
[1765985153255,0.01113809,89782.0,89778.0,0.01804]
[1765985153491,0.23388054,89790.0,89785.0,0.2338918]
[1765985153697,0.01113622,89797.0,89787.0,0.01113746]
[1765985154018,0.00161,89800.0,89796.0,0.00105293]
[1765985154019,0.01274585,89800.0,89796.0,0.00105293]
[1765985154224,0.01113709,89790.0,89788.0,0.01804]
[1765985154388,0.2338717,89793.0,89787.0,0.2227486]
[1765985154574,0.23387654,89791.0,89786.0,0.22275069]
[1765985154774,0.23387676,89791.0,89786.0,0.01113759]
[1765985155001,0.01113684,89792.0,89788.0,0.01113734]
[1765985155204,0.00161,89800.0,89772.0,0.33417915]
[1765985155472,0.2338608,89797.0,89793.0,0.01113672]
[1765985155670,0.01274585,89800.0,89796.0,0.01113635]
[1765985155968,0.23386351,89796.0,89792.0,0.01113684]
[1765985156115,0.01113697,89791.0,89786.0,0.01113759]
[1765985156310,0.01113734,89788.0,89782.0,0.02917809]
[1765985156553,0.01113759,89786.0,89782.0,0.01804]
[1765985156931,0.23388952,89786.0,89782.0,0.01804]
[1765985157132,0.22275931,89783.0,89782.0,0.01804]
[1765985157774,0.22275049,89787.0,89782.0,0.03017809]
[1765985157976,0.22273239,89794.0,89789.0,0.01113722]
[1765985158378,0.00161,89800.0,89795.0,0.01113647]
[1765985158550,0.01113536,89804.0,89798.0,0.0111361]
[1765985158709,0.0103975,89803.0,89798.0,0.0111361]
[1765985158899,0.23385271,89801.0,89796.0,0.01113635]
[1765985159148,0.0111361,89798.0,89791.0,0.01113697]
[1765985159353,0.01113598,89799.0,89784.0,0.01804]
[1765985159490,0.01113511,89806.0,89795.0,0.01113647]
[1765985159708,0.30183622,89797.0,89792.0,0.01113684]
[1765985159906,0.2907,89797.0,89794.0,0.23386799]
[1765985160109,0.2907,89797.0,89795.0,0.22272955]
[1765985160311,0.01113548,89803.0,89794.0,0.0111366]
[1765985160593,0.01113672,89793.0,89785.0,0.23389071]
[1765985160747,0.2907,89800.0,89785.0,0.23389071]
[1765985160748,0.01113684,89792.0,89786.0,0.01113759]
[1765985160952,0.01113771,89785.0,89776.0,0.01113883]
[1765985161151,0.01113722,89789.0,89773.0,0.0111392]
[1765985161330,0.0111356,89802.0,89792.0,0.01113684]
[1765985161534,0.0104113,89801.0,89788.0,0.01113734]
[1765985161736,0.2907,89798.0,89795.0,0.01113647]
[1765985161936,0.02995652,89837.0,89796.0,0.0222727]
[1765985162139,0.01113424,89813.0,89807.0,0.2338336]
[1765985162339,0.00161,89831.0,89797.0,0.02227245]
[1765985162340,0.22270803,89804.0,89801.0,0.01804]
[1765985162547,0.0111361,89798.0,89792.0,0.01113684]
[1765985162761,0.01113598,89799.0,89793.0,0.22273403]
[1765985162960,0.01113622,89797.0,89792.0,0.01113684]
[1765985163162,0.22273433,89794.0,89787.0,0.01113746]
[1765985163393,0.22273433,89794.0,89779.0,0.22276861]
[1765985163394,0.01113796,89783.0,89775.0,0.01113895]
[1765985163572,0.23391309,89778.0,89775.0,0.018]
[1765985163773,0.00161,89778.0,89767.0,0.01113995]
[1765985163987,0.00161,89778.0,89769.0,0.0111397]
[1765985163988,0.01113908,89774.0,89769.0,0.0111397]
[1765985164187,0.01113908,89774.0,89767.0,0.22279813]
[1765985164391,0.01113908,89774.0,89770.0,0.01113957]
[1765985164607,0.23391387,89777.0,89769.0,0.0111397]
[1765985164929,0.0111392,89773.0,89767.0,0.22279736]
[1765985165128,0.0111392,89773.0,89768.0,0.01113982]
[1765985165331,0.0111392,89773.0,89772.0,0.00177542]
[1765985165839,0.0111392,89773.0,89767.0,0.01113995]
[1765985165840,0.22281165,89762.0,89756.0,0.01114131]
[1765985165979,0.22281165,89762.0,89749.0,0.018]
[1765985166181,0.0111397,89769.0,89762.0,0.22280943]
[1765985166424,0.01113957,89770.0,89764.0,0.01114032]
[1765985166681,0.01114044,89763.0,89760.0,0.0002]
[1765985166888,0.22281143,89762.0,89760.0,0.0002]
[1765985167330,0.02227667,89761.0,89760.0,0.0012]
[1765985167534,0.00898784,89761.0,89760.0,0.0012]
[1765985167946,0.22279165,89770.0,89760.0,0.0012]
[1765985167947,0.01113982,89768.0,89760.0,0.0012]
[1765985168150,0.01114007,89766.0,89761.0,0.01114069]
[1765985168349,0.02005144,89769.0,89761.0,0.01114069]
[1765985168511,0.01113908,89774.0,89767.0,0.22279882]
[1765985168706,0.23391894,89775.0,89768.0,0.23393555]
[1765985168908,0.23391589,89776.0,89770.0,0.01113957]
[1765985169133,0.01114044,89763.0,89760.0,0.0012]
[1765985169345,0.01114044,89763.0,89760.0,0.0002]
[1765985169346,0.22281281,89762.0,89760.0,0.0002]
[1765985169565,0.22287238,89738.0,89719.0,1.0]
[1765985169780,0.22287238,89738.0,89690.0,0.00099999]
[1765985169781,0.22285157,89746.0,89737.0,0.01114367]
[1765985170035,0.01114268,89745.0,89738.0,0.23401413]
[1765985170232,0.0111423,89748.0,89738.0,0.22287058]
[1765985170435,0.01114206,89750.0,89729.0,0.018]
[1765985170436,0.0111428,89744.0,89733.0,0.01114417]
[1765985170636,0.01114293,89743.0,89735.0,0.01114392]
[1765985170849,0.23399463,89746.0,89741.0,0.01114317]
[1765985170997,0.22286754,89740.0,89733.0,0.01114417]
[1765985171201,0.01114342,89739.0,89732.0,0.01114429]
[1765985171386,0.01114404,89734.0,89727.0,0.22289693]
[1765985171589,0.01114355,89738.0,89730.0,0.01114454]
[1765985171786,0.01114392,89735.0,89733.0,0.00117448]
[1765985172011,0.01114404,89734.0,89728.0,0.01114479]
[1765985172216,0.01114429,89732.0,89726.0,0.01114504]
[1765985172440,0.23402761,89733.0,89727.0,0.01114491]
[1765985172654,0.01114404,89734.0,89727.0,0.01314491]
[1765985172841,0.01114417,89733.0,89729.0,0.01114466]
[1765985173068,0.01114429,89732.0,89728.0,0.01114479]
[1765985173415,0.2907,89749.0,89728.0,0.003]
[1765985173658,0.018,89762.0,89701.0,0.01334067]
[1765985173659,0.22284992,89747.0,89739.0,0.22286854]
[1765985173868,0.0111428,89744.0,89735.0,0.22287647]
[1765985174080,0.01114305,89742.0,89734.0,0.01114404]
[1765985174327,0.02227667,89743.0,89737.0,0.01114367]
[1765985174328,0.01114293,89743.0,89737.0,0.01114367]
[1765985174526,0.0111433,89740.0,89733.0,0.23402747]
[1765985174755,0.0111433,89740.0,89735.0,0.01114392]
[1765985174928,0.23399501,89746.0,89738.0,0.2340132]
[1765985175126,0.01114218,89749.0,89742.0,0.01114305]
[1765985175285,0.01114255,89746.0,89741.0,0.01114317]
[1765985175486,0.23399285,89747.0,89741.0,0.01114317]
[1765985175693,0.0111428,89744.0,89738.0,0.01114355]
[1765985175913,0.01114293,89743.0,89738.0,0.01114355]
[1765985176114,0.01114317,89741.0,89735.0,0.001]
[1765985176319,0.22287439,89737.0,89731.0,0.01114442]
[1765985176481,0.01114342,89739.0,89734.0,0.01114404]
[1765985176691,0.69745599,89770.0,89739.0,0.01114342]
[1765985176890,0.01114243,89747.0,89742.0,0.01114305]
[1765985177191,0.23398495,89750.0,89744.0,0.23399815]
[1765985177475,0.01114255,89746.0,89741.0,0.01114317]
[1765985177683,0.01113982,89768.0,89763.0,0.01114044]
[1765985177875,0.01114032,89764.0,89757.0,0.01114119]
[1765985178026,0.01114069,89761.0,89757.0,0.01114119]
[1765985178220,0.01114069,89761.0,89754.0,0.01114156]
[1765985178221,0.01114081,89760.0,89755.0,0.01114144]
[1765985178489,0.01114069,89761.0,89756.0,0.01114131]
[1765985178688,0.22282469,89757.0,89750.0,0.2339824]
[1765985178940,0.23398663,89749.0,89742.0,0.01114305]
[1765985179088,0.00161,89763.0,89754.0,0.23397094]
[1765985179089,0.01114094,89759.0,89754.0,0.23397094]
[1765985179257,0.69745599,89780.0,89745.0,0.24085361]
[1765985179258,0.2907,89779.0,89764.0,0.01114032]
[1765985179460,0.2907,89779.0,89767.0,0.01113995]
[1765985179461,0.01113933,89772.0,89767.0,0.01113995]
[1765985179698,0.0111397,89769.0,89763.0,0.2228082]
[1765985180011,0.01113833,89780.0,89771.0,0.01113945]
[1765985180217,0.22277963,89775.0,89769.0,0.0111397]
[1765985180415,0.01113883,89776.0,89771.0,0.01113945]
[1765985180717,0.23391583,89776.0,89771.0,0.01113945]
[1765985180934,0.23391583,89776.0,89767.0,0.22279822]
[1765985180935,0.002,89779.0,89775.0,0.01113895]
[1765985181137,0.69745599,89810.0,89796.0,0.01113635]
[1765985181263,0.03428904,89809.0,89802.0,0.0111356]
[1765985181463,0.03428904,89809.0,89786.0,0.018]
[1765985181464,0.01113523,89805.0,89786.0,0.018]
[1765985181662,0.01037832,89808.0,89799.0,0.01113598]
[1765985181663,0.01113536,89804.0,89799.0,0.01113598]
[1765985181881,0.01113325,89821.0,89787.0,0.018]
[1765985182083,0.01113387,89816.0,89809.0,0.23382873]
[1765985182305,0.01113387,89816.0,89811.0,0.01113449]
[1765985182548,0.23379114,89824.0,89813.0,0.01113424]
[1765985182712,0.38307,89820.0,89814.0,0.01113412]
[1765985182924,0.222676,89817.0,89811.0,0.01113449]
[1765985183142,0.01113288,89824.0,89817.0,0.01113374]
[1765985183294,0.001,89816.0,89815.0,0.39021]
[1765985183513,0.38307,89821.0,89809.0,0.39021]
[1765985183739,0.01113288,89824.0,89819.0,0.0111335]
[1765985183937,0.01113325,89821.0,89817.0,0.01113374]
[1765985184236,0.01113337,89820.0,89816.0,0.01113387]
[1765985184394,0.0111335,89819.0,89813.0,0.02913424]
[1765985184602,0.0111335,89819.0,89814.0,0.01113412]
[1765985184603,0.01113362,89818.0,89814.0,0.01113412]
[1765985184826,0.01113362,89818.0,89813.0,0.25181821]
[1765985185114,0.23380109,89820.0,89814.0,0.01113412]
[1765985185278,0.001,89820.0,89819.0,0.0111335]
[1765985185456,0.001,89820.0,89819.0,0.4013435]
[1765985185662,0.01113275,89825.0,89820.0,0.01113337]
[1765985185829,0.01113275,89825.0,89819.0,0.0111335]
[1765985186033,0.23378887,89825.0,89819.0,0.0111335]
[1765985186234,0.018,89844.0,89813.0,0.40921]
[1765985186235,0.01113176,89833.0,89827.0,0.01113251]
[1765985186483,0.01113151,89835.0,89828.0,0.02226477]
[1765985186690,0.23376763,89833.0,89828.0,0.03339715]
[1765985186841,0.02390528,89837.0,89826.0,0.02226526]
[1765985187039,0.01113238,89828.0,89821.0,0.03339975]
[1765985187250,0.01113337,89820.0,89816.0,0.40821]
[1765985187450,0.22267372,89818.0,89816.0,0.39021]
[1765985187667,0.38307,89817.0,89816.0,0.39021]
[1765985187867,0.38468,89817.0,89816.0,0.39021]
[1765985188087,0.00161,89817.0,89812.0,0.01113436]
[1765985188241,0.01274374,89817.0,89813.0,0.01113424]
[1765985188442,0.39581374,89817.0,89813.0,0.01113424]
[1765985188645,0.01113412,89814.0,89810.0,0.02913461]
[1765985188861,0.002,89817.0,89813.0,0.03370424]
[1765985189063,0.22267107,89819.0,89818.0,0.39021]
[1765985189268,0.22267107,89819.0,89810.0,0.27409399]
[1765985189269,0.01113387,89816.0,89811.0,0.01113449]
[1765985189469,0.39420387,89816.0,89812.0,0.01113436]
[1765985189710,0.01113412,89814.0,89811.0,0.018]
[1765985190240,0.01113362,89818.0,89812.0,0.23381988]
[1765985190448,0.01113374,89817.0,89812.0,0.42391436]
[1765985190632,0.23381802,89814.0,89811.0,0.40821]
[1765985190832,0.23381033,89817.0,89811.0,0.02913449]
[1765985191032,0.23481033,89817.0,89811.0,0.25182319]
[1765985191192,0.0111335,89819.0,89815.0,0.01113399]
[1765985191390,0.0111335,89819.0,89814.0,0.01113412]
[1765985191391,0.01113189,89832.0,89826.0,0.01113263]
[1765985191613,0.23378791,89825.0,89819.0,0.39021]
[1765985191815,0.011133,89823.0,89819.0,0.39021]
[1765985192035,0.01113312,89822.0,89813.0,0.23381835]
[1765985192241,0.01113436,89812.0,89803.0,0.03370548]
[1765985192447,0.22268272,89814.0,89806.0,0.01113511]
[1765985192685,0.2226931,89810.0,89804.0,0.40821]
[1765985192886,0.01113399,89815.0,89810.0,0.01113461]
[1765985193092,0.01113424,89813.0,89809.0,0.01113474]
[1765985193234,0.01113399,89815.0,89807.0,0.01113498]
[1765985193437,0.01113387,89816.0,89810.0,0.01113461]
[1765985193746,0.01113399,89815.0,89810.0,0.01113461]
[1765985193973,0.01113412,89814.0,89808.0,0.23383216]
[1765985194176,0.01113436,89812.0,89807.0,0.01113498]
[1765985194352,0.22268774,89812.0,89807.0,0.018]
[1765985194574,0.01113461,89810.0,89807.0,0.018]
[1765985194774,0.23382466,89811.0,89807.0,0.018]
[1765985195000,0.23382466,89811.0,89802.0,0.23384672]
[1765985195001,0.38307,89799.0,89795.0,0.01113647]
[1765985195175,0.22271084,89803.0,89795.0,0.01113647]
[1765985195176,0.01113548,89803.0,89798.0,0.0111361]
[1765985195378,0.0111356,89802.0,89797.0,0.01113622]
[1765985195582,0.0111361,89798.0,89781.0,0.01113821]
[1765985195783,0.38307,89806.0,89793.0,0.01113672]
[1765985195980,0.23385048,89801.0,89796.0,0.01113635]
[1765985196159,0.01113511,89806.0,89798.0,0.23385738]
[1765985196349,0.01113548,89803.0,89798.0,0.23385767]
[1765985196553,0.40534667,89806.0,89801.0,0.01113573]
[1765985196744,0.38307,89806.0,89803.0,0.01113548]
[1765985196946,0.38307,89806.0,89799.0,0.01113598]
[1765985196947,0.39420511,89806.0,89798.0,0.0111361]
[1765985197236,0.38307,89810.0,89808.0,0.01113486]
[1765985197465,1.11296482,89851.0,89780.0,0.69745599]
[1765985197466,0.01113065,89842.0,89830.0,0.01113213]
[1765985197675,0.38307,89838.0,89832.0,0.01113189]
[1765985197879,0.0334533,89847.0,89832.0,0.01113189]
[1765985197880,0.03992324,89881.0,89843.0,0.01113052]
[1765985198037,0.38307,89845.0,89843.0,0.01274339]
[1765985198238,0.38307,89845.0,89844.0,0.22260807]
[1765985198791,0.01113139,89836.0,89809.0,0.44538944]
[1765985198938,0.01113065,89842.0,89838.0,0.01113114]
[1765985199143,0.01113102,89839.0,89835.0,0.018]
[1765985199340,0.22261332,89842.0,89838.0,0.00161287]
[1765985199583,0.0111304,89844.0,89839.0,0.23375127]
[1765985199723,0.0111304,89844.0,89838.0,0.00161287]
[1765985199724,0.01113027,89845.0,89840.0,0.02226179]
[1765985199934,0.01113077,89841.0,89838.0,0.00161287]
[1765985200189,0.01113065,89842.0,89838.0,0.00161287]
[1765985200398,0.00269365,89846.0,89839.0,0.01113102]
[1765985200603,0.00269365,89846.0,89843.0,0.01113052]
[1765985200868,0.00269365,89846.0,89844.0,0.62844774]
[1765985201049,0.00269365,89846.0,89844.0,0.22260774]
[1765985201270,3.65e-06,89846.0,89845.0,0.42971342]
[1765985201462,3.65e-06,89846.0,89845.0,0.40745287]
[1765985201637,0.0004,89890.0,89866.0,0.02315]
[1765985201638,0.37902,89889.0,89866.0,0.02315]
[1765985201818,0.1336626,89874.0,89873.0,0.02315]
[1765985202020,0.01112631,89877.0,89873.0,0.01961287]
[1765985202216,0.72069599,89890.0,89873.0,0.240535]
[1765985202217,0.37902,89875.0,89873.0,0.240535]
[1765985202456,0.0004,89890.0,89887.0,0.01112507]
[1765985202679,1e-08,89890.0,89889.0,0.22249663]
[1765985202968,1e-08,89890.0,89887.0,0.23523793]
[1765985203146,1e-08,89890.0,89888.0,0.22249807]
[1765985203466,1e-08,89890.0,89889.0,0.38269]
[1765985203818,1e-08,89890.0,89889.0,0.38430287]
[1765985204025,1e-08,89890.0,89889.0,0.01961287]
[1765985204168,1e-08,89890.0,89889.0,0.04075847]
[1765985204374,1e-08,89890.0,89889.0,0.42344847]
[1765985204576,1e-08,89890.0,89889.0,0.40230287]
[1765985205306,1e-08,89890.0,89889.0,0.42645287]